{"text_format":"3","workbook":"xlsx","n_sheets":3,"sheets":["Pradžia","Studijų mėnesio biudžetas","diagrama_skaičiavimai"],"not_rendered":{"charts":4,"defined_names":19},"read":"whole","date_system":"1900"}

{"sheet":"Pradžia","index":0,"n_rows":7,"n_cols":2,"rows_kept":7}
[null,"APIE ŠĮ ŠABLONĄ"]
[null,"Naudokite mėnesio studijų mėnesio biudžetas darbalapį norėdami sekti pajamas, išlaidas ir grynųjų pinigų srautą."]
[null,"Įveskite mėnesio pajamas ir išlaidas siekdami apskaičiuoti bendras pajamas ir išlaidas."]
[null,"Grynųjų pinigų srautas apskaičiuojami automatiškai ir atnaujinama grynųjų pinigų srautas diagrama."]
[null,"Pasirinkite slankiklį, kad gautumėte mėnesio ar metų pajamų, išlaidų ir grynųjų pinigų srauto diagramas."]
[null,"Pastaba. "]
[null,"Papildomos instrukcijos pateikiamos darbalapio A stulpelyje. Šis tekstas buvo specialiai paslėptas. Norėdami pašalinti tekstą, pasirinkite A stulpelį, tada pasirinkite Naikinti. Norėdami nebeslėpti teksto, pasirinkite A stulpelį, tada pakeiskite šrifto spalvą."]

{"sheet":"Studijų mėnesio biudžetas","index":1,"n_rows":72,"n_cols":16,"rows_kept":72,"merged":[[5,1,14,3],[5,4,14,11],[5,12,13,15],[15,1,19,15],[20,1,21,15]]}
["Šiame darbalapyje sukurkite mėnesio studijų biudžetą. Šio darbalapio pavadinimas yra langelyje dešinėje ir B1 langelyje. Naudingi patarimai, kaip naudoti šį darbalapį, pateikti šio stulpelio langeliuose. Kitas nurodymas yra A4 langelyje.","Studijų mėnesio biudžetas"]
[]
[]
["Pajamų žyma yra langelyje dešinėje, išlaidų žyma langelyje E4, o grynųjų pinigų žyma langelyje M4.",{"$f":"diagrama_skaičiavimai!$D$6","v":"metai pajamos:"},null,null,{"$f":"diagrama_skaičiavimai!$D$7","v":"metai išlaidos:"},{"$nulls":7},{"$f":"diagrama_skaičiavimai!$D$8","v":"metai grynųjų pinigų srautas:"}]
["Pajamos automatiškai atnaujinamos langelyje dešinėje, išlaidos langelyje E5, o grynųjų pinigų srautas langelyje M5.",{"$f":"\" \"&diagrama_skaičiavimai!$F$6","v":{"$error":"#VALUE!"}},null,null,{"$f":"\" \"&diagrama_skaičiavimai!$F$7","v":{"$error":"#VALUE!"}},{"$nulls":7},{"$f":"\" \"&diagrama_skaičiavimai!$F$8","v":" 169 EUR"}]
["Automatiškai atnaujinama žiedinė diagrama, rodanti pajamų suvestinės langelį dešinėje, išlaidų suvestinę langelyje E6 ir juostinė diagrama, vaizduojanti teigiamą ir neigiamą pinigų srautą langelyje M6. Kitas nurodymas yra langelyje A17.","Šiame langelyje žiedinė diagrama rodo pasirinkto mėnesio arba metų pajamų suvestinę.",null,null,"Šiame langelyje žiedinė diagrama rodo pasirinkto mėnesio arba metų išlaidų suvestinę.",{"$nulls":7},"Juostinė diagrama rodo pasirinkto mėnesio arba metų teigiamą ir neigiamą grynųjų pinigų srautą."]
{"$rows_empty":9}
[null,"Linijinė diagrama rodo pasirinkto mėnesio arba metų grynųjų pinigų srautą."]
["Grynųjų pinigų linijinė diagrama yra langelyje dešinėje. Kitas nurodymas yra A21 langelyje."]
[]
[]
[]
["Pasirinkite slankiklį dešinėje, kad gautumėte mėnesio ar metų pajamų, išlaidų ir grynųjų pinigų srauto duomenis ir diagramas. Kitas nurodymas yra langelyje A25.","Šiame langelyje yra slankiklis."]
[]
[]
[]
["Pasirinkite mėnesį langelyje dešinėje. Paspauskite ALT + rodyklę žemyn, kad pamatytumėte parinktis, tada – rodyklę žemyn ir ENTER, kad pasirinktumėte.","SAUS"]
["Pasirinktas laikotarpis automatiškai atnaujinamas P26 langelyje.",{"$nulls":14},{"$f":"PasirinktasLaikotarpis","v":{"$error":"#VALUE!"}}]
["Žymos rodomos šioje lentelėje, mėnesio grynieji pinigai po išlaidų žyma langelyje dešinėje, mėnesiai langeliuose nuo C27 iki N27, metai langelyje O27, o procentinis padidėjimas langelyje P27","Mėnesio grynieji pinigai po išlaidų",{"$f":"PirmasMėnuo","v":{"$error":"#VALUE!"}},{"$f":"KitasMėnuo","v":{"$error":"#VALUE!"}},{"$error":"#VALUE!"},{"$error":"#VALUE!"},{"$error":"#VALUE!"},{"$error":"#VALUE!"},{"$error":"#VALUE!"},{"$error":"#VALUE!"},{"$error":"#VALUE!"},{"$error":"#VALUE!"},{"$f":"KitasMėnuo","v":{"$error":"#VALUE!"}},{"$error":"#VALUE!"},"METAI  ","% PAJ. "]
["Grynųjų srauto žyma langelyje dešinėje. Kiekvieno mėnesio grynųjų pinigų srautas automatiškai apskaičiuojamas langeliuose nuo C28 iki N28, metinė suma langelyje O28, o procentinis padidėjimas langelyje P28. Miniatiūrinė diagrama automatiškai atnaujinama Q28 langelyje.","Pinigų srautas",{"$f":"C37-C72","v":169},69,192,199,204,{"v":-771,"d":"-771 "},124,154,{"v":-721,"d":"-721 "},109,34,{"v":-61,"d":"-61 "},{"$f":"SUM(C28:N28)","v":{"v":-299,"d":"-299 "}},{"$f":"INDEX($C28:$O28,,PasirinktasLaikotarpisStulpelis)/INDEX($C$37:$O$37,,PasirinktasLaikotarpisStulpelis)","v":{"$error":"#VALUE!"}}]
["Kaupiamųjų grynųjų srauto žyma langelyje dešinėje. Kiekvieno mėnesio kaupiamųjų grynųjų pinigų srautas automatiškai apskaičiuojamas langeliuose nuo C29 iki N29, metinė suma langelyje O29, o procentinis padidėjimas langelyje P29. Miniatiūrinė diagrama automatiškai atnaujinama Q29 langelyje. Kitas nurodymas yra A31 langelyje.","Kaupiamasis grynųjų pinigų srautas",{"$f":"SUM($C$28:C$28)","v":169},{"$f":"SUM($C$28:D$28)","v":238},{"$f":"SUM($C$28:E$28)","v":430},{"$f":"SUM($C$28:F$28)","v":629},{"$f":"SUM($C$28:G$28)","v":833},{"$f":"SUM($C$28:H$28)","v":62},{"$f":"SUM($C$28:I$28)","v":186},{"$f":"SUM($C$28:J$28)","v":340},{"$f":"SUM($C$28:K$28)","v":{"v":-381,"d":"-381 "}},{"$f":"SUM($C$28:L$28)","v":{"v":-272,"d":"-272 "}},{"$f":"SUM($C$28:M$28)","v":{"v":-238,"d":"-238 "}},{"$f":"SUM($C$28:N$28)","v":{"v":-299,"d":"-299 "}}]
[]
["Mėnesio pajamų žymos yra langelyje dešinėje, mėnesiai langeliuose nuo C31 iki N31, metai langelyje O31, o procentinio padidėjimo žyma langelyje P31. Langeliuose nuo B32 iki B36 įveskite mėnesio pajamų elementus ir mėnesio sumas langeliuose nuo C32 iki N36. Metinės pajamos automatiškai apskaičiuojamos langeliuose nuo O32 iki O36, o procentinis padidėjimas langeliuose nuo P32 iki P36. Kitas nurodymas yra langelyje A37.","MĖNESIO PAJAMOS",{"$f":"PirmasMėnuo","v":{"$error":"#VALUE!"}},{"$f":"KitasMėnuo","v":{"$error":"#VALUE!"}},{"$error":"#VALUE!"},{"$error":"#VALUE!"},{"$error":"#VALUE!"},{"$error":"#VALUE!"},{"$error":"#VALUE!"},{"$error":"#VALUE!"},{"$error":"#VALUE!"},{"$error":"#VALUE!"},{"$error":"#VALUE!"},{"$error":"#VALUE!"},"METAI  ","% PAJ. "]
[null,"Jums mokama finansinė parama (subsidijos, stipendijos, paskolos)",0,0,750,750,750,750,750,750,750,750,750,750,{"$f":"SUM(C32:N32)","v":{"v":7500,"d":"7,500"}},{"$f":"INDEX($C32:$O32,,PasirinktasLaikotarpisStulpelis)/INDEX($C$37:$O$37,,PasirinktasLaikotarpisStulpelis)","v":{"$error":"#VALUE!"}}]
[null,"Atlyginimai po mokesčių iš darbo užmokesčio",450,450,450,450,450,450,450,450,550,350,350,350,{"v":5200,"d":"5,200"},{"$f":"INDEX($C33:$O33,,PasirinktasLaikotarpisStulpelis)/INDEX($C$37:$O$37,,PasirinktasLaikotarpisStulpelis)","v":{"$error":"#VALUE!"}}]
[null,"Finansinė parama iš šeimos narių",200,200,{"v":1000,"d":"1,000"},350,350,350,350,350,350,350,350,350,{"v":4550,"d":"4,550"},{"$f":"INDEX($C34:$O34,,PasirinktasLaikotarpisStulpelis)/INDEX($C$37:$O$37,,PasirinktasLaikotarpisStulpelis)","v":{"$error":"#VALUE!"}}]
[null,"Išgryninimai iš santaupų",500,350,150,0,0,0,0,0,0,0,0,0,{"v":1000,"d":"1,000"},{"$f":"INDEX($C35:$O35,,PasirinktasLaikotarpisStulpelis)/INDEX($C$37:$O$37,,PasirinktasLaikotarpisStulpelis)","v":{"$error":"#VALUE!"}}]
[null,"Kita (parama vaikui, valstybės pagalba, dovanos ir kt.)",75,75,75,75,75,75,75,75,75,75,75,75,900,{"$f":"INDEX($C36:$O36,,PasirinktasLaikotarpisStulpelis)/INDEX($C$37:$O$37,,PasirinktasLaikotarpisStulpelis)","v":{"$error":"#VALUE!"}}]
["Bendrųjų pajamų žyma yra langelyje dešinėje. Kiekvieno mėnesio pajamos automatiškai apskaičiuojamos langeliuose nuo C37 iki N37, metinės pajamos langelyje O37, o procentinis padidėjimas langelyje P37. Miniatiūrinė diagrama automatiškai atnaujinama langelyje Q37. Kitas nurodymas yra A39 langelyje.","BENDROSIOS PAJAMOS",{"$f":"SUM(C32:C36)","v":{"v":1225,"d":"1,225"}},{"v":1075,"d":"1,075"},{"v":2425,"d":"2,425"},{"v":1625,"d":"1,625"},{"v":1625,"d":"1,625"},{"v":1625,"d":"1,625"},{"v":1625,"d":"1,625"},{"v":1625,"d":"1,625"},{"v":1725,"d":"1,725"},{"v":1525,"d":"1,525"},{"v":1525,"d":"1,525"},{"v":1525,"d":"1,525"},{"v":19150,"d":"19,150"},{"$f":"INDEX($C37:$O37,,PasirinktasLaikotarpisStulpelis)/INDEX($C$37:$O$37,,PasirinktasLaikotarpisStulpelis)","v":{"$error":"#VALUE!"}}]
[]
["Mėnesio išlaidų žyma yra langelyje dešinėje, mėnesiai langeliuose nuo C39 iki N39, metai langelyje O39, o procentinio padidėjimo žyma langelyje P39.","MĖNESIO IŠLAIDOS",{"$f":"PirmasMėnuo","v":{"$error":"#VALUE!"}},{"$f":"KitasMėnuo","v":{"$error":"#VALUE!"}},{"$error":"#VALUE!"},{"$error":"#VALUE!"},{"$error":"#VALUE!"},{"$error":"#VALUE!"},{"$error":"#VALUE!"},{"$error":"#VALUE!"},{"$error":"#VALUE!"},{"$error":"#VALUE!"},{"$error":"#VALUE!"},{"$error":"#VALUE!"},"METAI  ","% PAJ. "]
["Įveskite arba modifikuokite išlaidų elementą langelyje dešinėje, o mėnesių sumos langeliuose nuo C40 iki N43. Metinė suma automatiškai apskaičiuojama langeliuose nuo O40 iki O43, o procentinis padidėjimas langeliuose nuo P40 iki P43. Miniatiūrinė diagrama automatiškai atnaujinama Q40 langelyje. Kitas nurodymas yra A45 langelyje.","Kambarys ir maistas",{"$f":"SUM(C41:C43)","v":565},565,565,565,565,565,565,565,565,565,565,565,{"$f":"SUM(C40:N40)","v":{"v":6780,"d":"6,780"}},{"$f":"INDEX($C40:$O40,,PasirinktasLaikotarpisStulpelis)/INDEX($C$72:$O$72,,PasirinktasLaikotarpisStulpelis)","v":{"$error":"#VALUE!"}}]
[null,null,315,315,315,315,315,315,315,315,315,315,315,315,{"$f":"SUM(C41:N41)","v":{"v":3780,"d":"3,780"}},{"$f":"INDEX($C41:$O41,,PasirinktasLaikotarpisStulpelis)/INDEX($C$72:$O$72,,PasirinktasLaikotarpisStulpelis)","v":{"$error":"#VALUE!"}}]
[null,null,200,200,200,200,200,200,200,200,200,200,200,200,{"$f":"SUM(C42:N42)","v":{"v":2400,"d":"2,400"}},{"$f":"INDEX($C42:$O42,,PasirinktasLaikotarpisStulpelis)/INDEX($C$72:$O$72,,PasirinktasLaikotarpisStulpelis)","v":{"$error":"#VALUE!"}}]
[null,null,50,50,50,50,50,50,50,50,50,50,50,50,{"$f":"SUM(C43:N43)","v":600},{"$f":"INDEX($C43:$O43,,PasirinktasLaikotarpisStulpelis)/INDEX($C$72:$O$72,,PasirinktasLaikotarpisStulpelis)","v":{"$error":"#VALUE!"}}]
[]
["Įveskite arba modifikuokite išlaidų elementą langelyje dešinėje, o mėnesių sumos langeliuose nuo C45 iki N47. Metinė suma automatiškai apskaičiuojama langeliuose nuo O45 iki O47, o procentinis padidėjimas langeliuose nuo P45 iki P47. Miniatiūrinė diagrama automatiškai atnaujinama Q45 langelyje. Kitas nurodymas yra langelyje A49.","Mokslas ir mokesčiai",{"$f":"SUM(C46:C47)","v":0},0,750,0,0,650,0,0,650,0,0,0,{"$f":"SUM(C45:N45)","v":{"v":2050,"d":"2,050"}},{"$f":"INDEX($C45:$O45,,PasirinktasLaikotarpisStulpelis)/INDEX($C$72:$O$72,,PasirinktasLaikotarpisStulpelis)","v":{"$error":"#VALUE!"}}]
[null,null,0,0,500,0,0,500,0,0,500,0,0,0,{"$f":"SUM(C46:N46)","v":{"v":1500,"d":"1,500"}},{"$f":"INDEX($C46:$O46,,PasirinktasLaikotarpisStulpelis)/INDEX($C$72:$O$72,,PasirinktasLaikotarpisStulpelis)","v":{"$error":"#VALUE!"}}]
[null,null,0,0,250,0,0,150,0,0,150,0,0,0,{"$f":"SUM(C47:N47)","v":550},{"$f":"INDEX($C47:$O47,,PasirinktasLaikotarpisStulpelis)/INDEX($C$72:$O$72,,PasirinktasLaikotarpisStulpelis)","v":{"$error":"#VALUE!"}}]
[]
["Įveskite arba modifikuokite išlaidų elementą langelyje dešinėje, o mėnesių sumos langeliuose nuo C49 iki N51. Metinė suma automatiškai apskaičiuojama langeliuose nuo O49 iki O51, o procentinis padidėjimas langeliuose nuo P49 iki P51. Miniatiūrinė diagrama automatiškai atnaujinama Q49 langelyje. Kitas nurodymas yra A53 langelyje.","Knygos ir priemonės",{"$f":"SUM(C50:C51)","v":0},0,325,20,20,325,10,10,400,15,15,15,{"$f":"SUM(C49:N49)","v":{"v":1155,"d":"1,155"}},{"$f":"INDEX($C49:$O49,,PasirinktasLaikotarpisStulpelis)/INDEX($C$72:$O$72,,PasirinktasLaikotarpisStulpelis)","v":{"$error":"#VALUE!"}}]
[null,null,0,0,225,0,0,275,0,0,325,0,0,0,{"$f":"SUM(C50:N50)","v":825},{"$f":"INDEX($C50:$O50,,PasirinktasLaikotarpisStulpelis)/INDEX($C$72:$O$72,,PasirinktasLaikotarpisStulpelis)","v":{"$error":"#VALUE!"}}]
[null,null,0,0,100,20,20,50,10,10,75,15,15,15,{"$f":"SUM(C51:N51)","v":330},{"$f":"INDEX($C51:$O51,,PasirinktasLaikotarpisStulpelis)/INDEX($C$72:$O$72,,PasirinktasLaikotarpisStulpelis)","v":{"$error":"#VALUE!"}}]
[]
["Įveskite arba modifikuokite išlaidų elementą langelyje dešinėje, o mėnesių sumos langeliuose nuo C53 iki N57. Metinė suma automatiškai apskaičiuojama langeliuose nuo O53 iki O57, o procentinis padidėjimas langeliuose nuo P53 iki P57. Miniatiūrinė diagrama automatiškai atnaujinama Q53 langelyje. Kitas nurodymas yra A59 langelyje.","Transportas",{"$f":"SUM(C54:C57)","v":224},174,174,219,174,174,274,219,174,174,224,269,{"$f":"SUM(C53:N53)","v":{"v":2473,"d":"2,473"}},{"$f":"INDEX($C53:$O53,,PasirinktasLaikotarpisStulpelis)/INDEX($C$72:$O$72,,PasirinktasLaikotarpisStulpelis)","v":{"$error":"#VALUE!"}}]
[null,null,30,30,30,75,30,30,30,75,30,30,30,75,{"$f":"SUM(C54:N54)","v":495},{"$f":"INDEX($C54:$O54,,PasirinktasLaikotarpisStulpelis)/INDEX($C$72:$O$72,,PasirinktasLaikotarpisStulpelis)","v":{"$error":"#VALUE!"}}]
[null,null,129,129,129,129,129,129,129,129,129,129,129,129,{"$f":"SUM(C55:N55)","v":{"v":1548,"d":"1,548"}},{"$f":"INDEX($C55:$O55,,PasirinktasLaikotarpisStulpelis)/INDEX($C$72:$O$72,,PasirinktasLaikotarpisStulpelis)","v":{"$error":"#VALUE!"}}]
[null,null,15,15,15,15,15,15,15,15,15,15,15,15,{"$f":"SUM(C56:N56)","v":180},{"$f":"INDEX($C56:$O56,,PasirinktasLaikotarpisStulpelis)/INDEX($C$72:$O$72,,PasirinktasLaikotarpisStulpelis)","v":{"$error":"#VALUE!"}}]
[null,null,50,0,0,0,0,0,100,0,0,0,50,50,{"$f":"SUM(C57:N57)","v":250},{"$f":"INDEX($C57:$O57,,PasirinktasLaikotarpisStulpelis)/INDEX($C$72:$O$72,,PasirinktasLaikotarpisStulpelis)","v":{"$error":"#VALUE!"}}]
[]
["Įveskite arba modifikuokite išlaidų elementą langelyje dešinėje, o mėnesių sumos langeliuose nuo C59 iki N65. Metinė suma automatiškai apskaičiuojama langeliuose nuo O59 iki O65, o procentinis padidėjimas langeliuose nuo P59 iki P65. Miniatiūrinė diagrama automatiškai atnaujinama Q59 langelyje. Kitas nurodymas yra A67 langelyje.","Nebūtinosios_išlaidos",{"$f":"SUM(C60:C65)","v":69},69,169,369,419,444,419,419,394,394,419,469,{"$f":"SUM(C59:N59)","v":{"v":4053,"d":"4,053"}},{"$f":"INDEX($C59:$O59,,PasirinktasLaikotarpisStulpelis)/INDEX($C$72:$O$72,,PasirinktasLaikotarpisStulpelis)","v":{"$error":"#VALUE!"}}]
[null,null,0,0,0,50,100,100,100,100,75,75,100,100,800,{"$f":"INDEX($C60:$O60,,PasirinktasLaikotarpisStulpelis)/INDEX($C$72:$O$72,,PasirinktasLaikotarpisStulpelis)","v":{"$error":"#VALUE!"}}]
[null,null,69,69,69,69,69,69,69,69,69,69,69,69,828,{"$f":"INDEX($C61:$O61,,PasirinktasLaikotarpisStulpelis)/INDEX($C$72:$O$72,,PasirinktasLaikotarpisStulpelis)","v":{"$error":"#VALUE!"}}]
[null,null,0,0,0,0,0,25,0,0,0,0,0,50,75,{"$f":"INDEX($C62:$O62,,PasirinktasLaikotarpisStulpelis)/INDEX($C$72:$O$72,,PasirinktasLaikotarpisStulpelis)","v":{"$error":"#VALUE!"}}]
[null,null,0,0,100,100,100,100,100,100,100,100,100,100,{"v":1000,"d":"1,000"},{"$f":"INDEX($C63:$O63,,PasirinktasLaikotarpisStulpelis)/INDEX($C$72:$O$72,,PasirinktasLaikotarpisStulpelis)","v":{"$error":"#VALUE!"}}]
[null,null,0,0,0,50,50,50,50,50,50,50,50,50,450,{"$f":"INDEX($C64:$O64,,PasirinktasLaikotarpisStulpelis)/INDEX($C$72:$O$72,,PasirinktasLaikotarpisStulpelis)","v":{"$error":"#VALUE!"}}]
[null,null,0,0,0,100,100,100,100,100,100,100,100,100,900,{"$f":"INDEX($C65:$O65,,PasirinktasLaikotarpisStulpelis)/INDEX($C$72:$O$72,,PasirinktasLaikotarpisStulpelis)","v":{"$error":"#VALUE!"}}]
[]
["Įveskite arba modifikuokite išlaidų elementą langelyje dešinėje, o mėnesių sumos langeliuose nuo C67 iki N70. Metinė suma automatiškai apskaičiuojama langeliuose nuo O67 iki O70, o procentinis padidėjimas langeliuose nuo P67 iki P70. Miniatiūrinė diagrama automatiškai atnaujinama Q67 langelyje. Naujas nurodymas yra A72 langelyje.","Kitos išlaidos",{"$f":"SUM(C68:C70)","v":198},{"$f":"SUM(D68:D70)","v":198},250,253,243,238,233,258,263,268,268,268,{"$f":"SUM(C67:N67)","v":{"v":2938,"d":"2,938"}},{"$f":"INDEX($C67:$O67,,PasirinktasLaikotarpisStulpelis)/INDEX($C$72:$O$72,,PasirinktasLaikotarpisStulpelis)","v":{"$error":"#VALUE!"}}]
[null,null,123,123,123,123,123,123,123,123,123,123,123,123,{"$f":"SUM(C68:N68)","v":{"v":1476,"d":"1,476"}},{"$f":"INDEX($C68:$O68,,PasirinktasLaikotarpisStulpelis)/INDEX($C$72:$O$72,,PasirinktasLaikotarpisStulpelis)","v":{"$error":"#VALUE!"}}]
[null,null,0,0,52,55,45,40,35,60,65,70,70,70,{"$f":"SUM(C69:N69)","v":562},{"$f":"INDEX($C69:$O69,,PasirinktasLaikotarpisStulpelis)/INDEX($C$72:$O$72,,PasirinktasLaikotarpisStulpelis)","v":{"$error":"#VALUE!"}}]
[null,null,75,75,75,75,75,75,75,75,75,75,75,75,{"$f":"SUM(C70:N70)","v":900},{"$f":"INDEX($C70:$O70,,PasirinktasLaikotarpisStulpelis)/INDEX($C$72:$O$72,,PasirinktasLaikotarpisStulpelis)","v":{"$error":"#VALUE!"}}]
[]
["Bendrųjų išlaidų žymė langelyje dešinėje. Kiekvieno mėnesio bendrosios išlaidos automatiškai apskaičiuojamos langeliuose nuo C72 iki N72, metinės išlaidos langelyje O72, o procentinis padidėjimas langelyje P72. Miniatiūrinė diagrama automatiškai atnaujinama Q72 langelyje.","BENDROSIOS IŠLAIDOS",{"$f":"SUM(C40,C45,C49,C53,C59,C67)","v":{"v":1056,"d":"1,056"}},{"v":1006,"d":"1,006"},{"v":2233,"d":"2,233"},{"v":1426,"d":"1,426"},{"v":1421,"d":"1,421"},{"v":2396,"d":"2,396"},{"v":1501,"d":"1,501"},{"v":1471,"d":"1,471"},{"v":2446,"d":"2,446"},{"v":1416,"d":"1,416"},{"v":1491,"d":"1,491"},{"v":1586,"d":"1,586"},{"$f":"SUM(C72:N72)","v":{"v":19449,"d":"19,449"}},{"$f":"INDEX($C72:$O72,,PasirinktasLaikotarpisStulpelis)/INDEX($C$72:$O$72,,PasirinktasLaikotarpisStulpelis)","v":{"$error":"#VALUE!"}}]

{"sheet":"diagrama_skaičiavimai","index":2,"n_rows":23,"n_cols":16,"rows_kept":23,"hidden":true}
["***Šis darbalapis turi likti PASLĖPTAS***"]
[]
[{"$nulls":3},{"$f":"IFERROR(LOWER(TEXT(VALUE(PasirinktasLaikotarpis&\" 1\"),\"mmmm\")),\"metai\")","v":"metai"}]
[]
[{"$nulls":3},"Dinaminės diagramos pavadinimai"]
[{"$nulls":3},{"$f":"D3&\" pajamos:\"","v":"metai pajamos:"},null,{"$f":"TEXT(INDEX('Studijų mėnesio biudžetas'!$C$37:$O$37,,PasirinktasLaikotarpisStulpelis),\"# ##0\\ [$EUR]\")","v":{"$error":"#VALUE!"}}]
[{"$nulls":3},{"$f":"D3&\" išlaidos:\"","v":"metai išlaidos:"},null,{"$f":"TEXT(INDEX('Studijų mėnesio biudžetas'!$C$72:$O$72,,PasirinktasLaikotarpisStulpelis),\"# ##0\\ [$EUR]\")","v":{"$error":"#VALUE!"}}]
[{"$nulls":3},{"$f":"D3&\" grynųjų pinigų srautas:\"","v":"metai grynųjų pinigų srautas:"},{"$f":"INDEX('Studijų mėnesio biudžetas'!C28:O28,SlinktiesJuostosReikšmė)","v":169},{"$f":"TEXT(E8,\"# ##0\\ [$EUR]\")","v":"169 EUR"}]
[]
[]
[]
[{"$nulls":3},{"$f":"LOWER('Studijų mėnesio biudžetas'!C27)","v":{"$error":"#VALUE!"}},{"$f":"LOWER('Studijų mėnesio biudžetas'!D27)","v":{"$error":"#VALUE!"}},{"$f":"LOWER('Studijų mėnesio biudžetas'!E27)","v":{"$error":"#VALUE!"}},{"$f":"LOWER('Studijų mėnesio biudžetas'!F27)","v":{"$error":"#VALUE!"}},{"$f":"LOWER('Studijų mėnesio biudžetas'!G27)","v":{"$error":"#VALUE!"}},{"$f":"LOWER('Studijų mėnesio biudžetas'!H27)","v":{"$error":"#VALUE!"}},{"$f":"LOWER('Studijų mėnesio biudžetas'!I27)","v":{"$error":"#VALUE!"}},{"$f":"LOWER('Studijų mėnesio biudžetas'!J27)","v":{"$error":"#VALUE!"}},{"$f":"LOWER('Studijų mėnesio biudžetas'!K27)","v":{"$error":"#VALUE!"}},{"$f":"LOWER('Studijų mėnesio biudžetas'!L27)","v":{"$error":"#VALUE!"}},{"$f":"LOWER('Studijų mėnesio biudžetas'!M27)","v":{"$error":"#VALUE!"}},{"$f":"LOWER('Studijų mėnesio biudžetas'!N27)","v":{"$error":"#VALUE!"}},{"$f":"LOWER('Studijų mėnesio biudžetas'!O27)","v":"metai  "}]
[null,null,"Slinkties juostos reikšmė: ",1]
[null,null,"Grynųjų pinigų srauto diagrama: ",{"$f":"IF(PasirinktasLaikotarpis='Studijų mėnesio biudžetas'!C$31,IF('Studijų mėnesio biudžetas'!$C$28:$O$28>=0,'Studijų mėnesio biudžetas'!$C$28:$O$28,NA()),NA())","v":{"$error":"#VALUE!"}},{"$f":"IF(PasirinktasLaikotarpis='Studijų mėnesio biudžetas'!D$31,IF('Studijų mėnesio biudžetas'!$C$28:$O$28>=0,'Studijų mėnesio biudžetas'!$C$28:$O$28,NA()),NA())","v":{"$error":"#VALUE!"}},{"$f":"IF(PasirinktasLaikotarpis='Studijų mėnesio biudžetas'!E$31,IF('Studijų mėnesio biudžetas'!$C$28:$O$28>=0,'Studijų mėnesio biudžetas'!$C$28:$O$28,NA()),NA())","v":{"$error":"#VALUE!"}},{"$f":"IF(PasirinktasLaikotarpis='Studijų mėnesio biudžetas'!F$31,IF('Studijų mėnesio biudžetas'!$C$28:$O$28>=0,'Studijų mėnesio biudžetas'!$C$28:$O$28,NA()),NA())","v":{"$error":"#VALUE!"}},{"$f":"IF(PasirinktasLaikotarpis='Studijų mėnesio biudžetas'!G$31,IF('Studijų mėnesio biudžetas'!$C$28:$O$28>=0,'Studijų mėnesio biudžetas'!$C$28:$O$28,NA()),NA())","v":{"$error":"#VALUE!"}},{"$f":"IF(PasirinktasLaikotarpis='Studijų mėnesio biudžetas'!H$31,IF('Studijų mėnesio biudžetas'!$C$28:$O$28>=0,'Studijų mėnesio biudžetas'!$C$28:$O$28,NA()),NA())","v":{"$error":"#VALUE!"}},{"$f":"IF(PasirinktasLaikotarpis='Studijų mėnesio biudžetas'!I$31,IF('Studijų mėnesio biudžetas'!$C$28:$O$28>=0,'Studijų mėnesio biudžetas'!$C$28:$O$28,NA()),NA())","v":{"$error":"#VALUE!"}},{"$f":"IF(PasirinktasLaikotarpis='Studijų mėnesio biudžetas'!J$31,IF('Studijų mėnesio biudžetas'!$C$28:$O$28>=0,'Studijų mėnesio biudžetas'!$C$28:$O$28,NA()),NA())","v":{"$error":"#VALUE!"}},{"$f":"IF(PasirinktasLaikotarpis='Studijų mėnesio biudžetas'!K$31,IF('Studijų mėnesio biudžetas'!$C$28:$O$28>=0,'Studijų mėnesio biudžetas'!$C$28:$O$28,NA()),NA())","v":{"$error":"#VALUE!"}},{"$f":"IF(PasirinktasLaikotarpis='Studijų mėnesio biudžetas'!L$31,IF('Studijų mėnesio biudžetas'!$C$28:$O$28>=0,'Studijų mėnesio biudžetas'!$C$28:$O$28,NA()),NA())","v":{"$error":"#VALUE!"}},{"$f":"IF(PasirinktasLaikotarpis='Studijų mėnesio biudžetas'!M$31,IF('Studijų mėnesio biudžetas'!$C$28:$O$28>=0,'Studijų mėnesio biudžetas'!$C$28:$O$28,NA()),NA())","v":{"$error":"#VALUE!"}},{"$f":"IF(PasirinktasLaikotarpis='Studijų mėnesio biudžetas'!N$31,IF('Studijų mėnesio biudžetas'!$C$28:$O$28>=0,'Studijų mėnesio biudžetas'!$C$28:$O$28,NA()),NA())","v":{"$error":"#VALUE!"}},{"$f":"IF(PasirinktasLaikotarpis='Studijų mėnesio biudžetas'!O$31,IF('Studijų mėnesio biudžetas'!$C$28:$O$28>=0,'Studijų mėnesio biudžetas'!$C$28:$O$28,NA()),NA())","v":{"$error":"#VALUE!"}}]
[null,null,"Kaupiamasis: ",{"$f":"IF(PasirinktasLaikotarpis='Studijų mėnesio biudžetas'!C$31,IF('Studijų mėnesio biudžetas'!$C$28:$O$28<0,'Studijų mėnesio biudžetas'!$C$28:$O$28,NA()),NA())","v":{"$error":"#VALUE!"}},{"$f":"IF(PasirinktasLaikotarpis='Studijų mėnesio biudžetas'!D$31,IF('Studijų mėnesio biudžetas'!$C$28:$O$28<0,'Studijų mėnesio biudžetas'!$C$28:$O$28,NA()),NA())","v":{"$error":"#VALUE!"}},{"$f":"IF(PasirinktasLaikotarpis='Studijų mėnesio biudžetas'!E$31,IF('Studijų mėnesio biudžetas'!$C$28:$O$28<0,'Studijų mėnesio biudžetas'!$C$28:$O$28,NA()),NA())","v":{"$error":"#VALUE!"}},{"$f":"IF(PasirinktasLaikotarpis='Studijų mėnesio biudžetas'!F$31,IF('Studijų mėnesio biudžetas'!$C$28:$O$28<0,'Studijų mėnesio biudžetas'!$C$28:$O$28,NA()),NA())","v":{"$error":"#VALUE!"}},{"$f":"IF(PasirinktasLaikotarpis='Studijų mėnesio biudžetas'!G$31,IF('Studijų mėnesio biudžetas'!$C$28:$O$28<0,'Studijų mėnesio biudžetas'!$C$28:$O$28,NA()),NA())","v":{"$error":"#VALUE!"}},{"$f":"IF(PasirinktasLaikotarpis='Studijų mėnesio biudžetas'!H$31,IF('Studijų mėnesio biudžetas'!$C$28:$O$28<0,'Studijų mėnesio biudžetas'!$C$28:$O$28,NA()),NA())","v":{"$error":"#VALUE!"}},{"$f":"IF(PasirinktasLaikotarpis='Studijų mėnesio biudžetas'!I$31,IF('Studijų mėnesio biudžetas'!$C$28:$O$28<0,'Studijų mėnesio biudžetas'!$C$28:$O$28,NA()),NA())","v":{"$error":"#VALUE!"}},{"$f":"IF(PasirinktasLaikotarpis='Studijų mėnesio biudžetas'!J$31,IF('Studijų mėnesio biudžetas'!$C$28:$O$28<0,'Studijų mėnesio biudžetas'!$C$28:$O$28,NA()),NA())","v":{"$error":"#VALUE!"}},{"$f":"IF(PasirinktasLaikotarpis='Studijų mėnesio biudžetas'!K$31,IF('Studijų mėnesio biudžetas'!$C$28:$O$28<0,'Studijų mėnesio biudžetas'!$C$28:$O$28,NA()),NA())","v":{"$error":"#VALUE!"}},{"$f":"IF(PasirinktasLaikotarpis='Studijų mėnesio biudžetas'!L$31,IF('Studijų mėnesio biudžetas'!$C$28:$O$28<0,'Studijų mėnesio biudžetas'!$C$28:$O$28,NA()),NA())","v":{"$error":"#VALUE!"}},{"$f":"IF(PasirinktasLaikotarpis='Studijų mėnesio biudžetas'!M$31,IF('Studijų mėnesio biudžetas'!$C$28:$O$28<0,'Studijų mėnesio biudžetas'!$C$28:$O$28,NA()),NA())","v":{"$error":"#VALUE!"}},{"$f":"IF(PasirinktasLaikotarpis='Studijų mėnesio biudžetas'!N$31,IF('Studijų mėnesio biudžetas'!$C$28:$O$28<0,'Studijų mėnesio biudžetas'!$C$28:$O$28,NA()),NA())","v":{"$error":"#VALUE!"}},{"$f":"IF(PasirinktasLaikotarpis='Studijų mėnesio biudžetas'!O$31,IF('Studijų mėnesio biudžetas'!$C$28:$O$28<0,'Studijų mėnesio biudžetas'!$C$28:$O$28,NA()),NA())","v":{"$error":"#VALUE!"}}]
[]
[]
[null,null,"PAJAMŲ DIAGRAMOS DUOMENYS"]
[null,null,"Jums mokama finansinė parama (subsidijos, stipendijos, paskolos)",{"$f":"'Studijų mėnesio biudžetas'!P32","v":{"$error":"#VALUE!"}}]
[null,null,"Atlyginimai po mokesčių iš darbo užmokesčio",{"$f":"'Studijų mėnesio biudžetas'!P33","v":{"$error":"#VALUE!"}}]
[null,null,"Finansinė parama iš šeimos narių",{"$f":"'Studijų mėnesio biudžetas'!P34","v":{"$error":"#VALUE!"}}]
[null,null,"Išgryninimai iš santaupų",{"$f":"'Studijų mėnesio biudžetas'!P35","v":{"$error":"#VALUE!"}}]
[null,null,"Kita (parama vaikui, valstybės pagalba, dovanos ir kt.)",{"$f":"'Studijų mėnesio biudžetas'!P36","v":{"$error":"#VALUE!"}}]